[Event "*** Titled Tuesday Blitz"]
[Site "Chess.com"]
[Date "2020.05.26"]
[Round "2"]
[White "AnthonyWirig"]
[Black "Xtrmntr78"]
[Result "1-0"]
[WhiteElo "2682"]
[BlackElo "2429"]
[TimeControl "180+1"]
[EndTime "10:18:33 PDT"]
[Termination "AnthonyWirig won on time"]

1. d4 {[%clk 0:03:00.9]} 1... f5 {[%clk 0:02:58.8]} 2. g3 {[%clk 0:02:57.3]}
2... Nf6 {[%clk 0:02:57.5]} 3. Bg2 {[%clk 0:02:57.7]} 3... e6 {[%clk 0:02:57.1]}
4. Nf3 {[%clk 0:02:57.9]} 4... d5 {[%clk 0:02:56.4]} 5. c4 {[%clk 0:02:58.1]}
5... Bd6 {[%clk 0:02:54.7]} 6. O-O {[%clk 0:02:58]} 6... O-O {[%clk 0:02:53.4]}
7. Nc3 {[%clk 0:02:58.4]} 7... c6 {[%clk 0:02:52.6]} 8. Qc2 {[%clk 0:02:58.2]}
8... b6 {[%clk 0:02:44.5]} 9. cxd5 {[%clk 0:02:37.1]} 9... exd5 {[%clk
0:02:38.9]} 10. Bf4 {[%clk 0:02:31.9]} 10... Ne4 {[%clk 0:02:34.6]} 11. Bxd6
{[%clk 0:02:13.8]} 11... Qxd6 {[%clk 0:02:33.6]} 12. Rac1 {[%clk 0:02:03.5]}
12... Nd7 {[%clk 0:02:19.8]} 13. e3 {[%clk 0:01:58]} 13... h6 {[%clk 0:01:53.4]}
14. Rfd1 {[%clk 0:01:55.3]} 14... Bb7 {[%clk 0:01:49]} 15. a3 {[%clk 0:01:35.8]}
15... a5 {[%clk 0:01:43.4]} 16. Ne2 {[%clk 0:01:28.8]} 16... g5 {[%clk
0:01:41.8]} 17. Nc3 {[%clk 0:01:28.7]} 17... Kg7 {[%clk 0:01:37.7]} 18. Qb3
{[%clk 0:01:23.3]} 18... b5 {[%clk 0:01:30.2]} 19. Qc2 {[%clk 0:01:17.7]} 19...
Rac8 {[%clk 0:01:25.9]} 20. Ne1 {[%clk 0:01:06.9]} 20... Rce8 {[%clk 0:00:52.5]}
21. Nd3 {[%clk 0:01:01.4]} 21... Rf6 {[%clk 0:00:34.7]} 22. Rf1 {[%clk
0:00:58.1]} 22... h5 {[%clk 0:00:33.5]} 23. Nxe4 {[%clk 0:00:41.9]} 23... fxe4
{[%clk 0:00:32.7]} 24. Nc5 {[%clk 0:00:42.8]} 24... Bc8 {[%clk 0:00:26.7]} 25.
f4 {[%clk 0:00:31.3]} 25... exf3 {[%clk 0:00:25.3]} 26. Rxf3 {[%clk 0:00:23.3]}
26... Rxf3 {[%clk 0:00:21.6]} 27. Bxf3 {[%clk 0:00:23.7]} 27... g4 {[%clk
0:00:21.6]} 28. Bg2 {[%clk 0:00:22.6]} 28... Rxe3 {[%clk 0:00:18.3]} 29. Nd3
{[%clk 0:00:20.6]} 29... Qf6 {[%clk 0:00:16.9]} 30. Nf4 {[%clk 0:00:17.2]} 30...
Qxd4 {[%clk 0:00:14.8]} 31. Qg6+ {[%clk 0:00:16.6]} 31... Kf8 {[%clk 0:00:13.6]}
32. Kh1 {[%clk 0:00:15.3]} 32... Ne5 {[%clk 0:00:11.5]} 33. Qf6+ {[%clk
0:00:09.6]} 33... Ke8 {[%clk 0:00:11.4]} 34. Rf1 {[%clk 0:00:09]} 34... Nf3
{[%clk 0:00:10.4]} 35. Qg6+ {[%clk 0:00:07.2]} 35... Kd8 {[%clk 0:00:09.5]} 36.
Qd6+ {[%clk 0:00:06.8]} 36... Bd7 {[%clk 0:00:08.5]} 37. Qb8+ {[%clk 0:00:06.2]}
37... Ke7 {[%clk 0:00:08.4]} 38. Qg8 {[%clk 0:00:05.3]} 38... Qc4 {[%clk
0:00:07.3]} 39. Ng6+ {[%clk 0:00:05]} 39... Kd6 {[%clk 0:00:06.9]} 40. Qf8+
{[%clk 0:00:03.9]} 40... Kc7 {[%clk 0:00:06.2]} 41. Qf7 {[%clk 0:00:02.1]} 41...
Qc2 {[%clk 0:00:05.5]} 42. Nf8 {[%clk 0:00:02.1]} 42... Kb6 {[%clk 0:00:03.7]}
43. Qxd7 {[%clk 0:00:02.6]} 43... Re1 {[%clk 0:00:03]} 44. Qd8+ {[%clk
0:00:03.5]} 44... Ka6 {[%clk 0:00:02.3]} 45. Qc8+ {[%clk 0:00:01.6]} 45... Kb6
{[%clk 0:00:03.2]} 46. Qb8+ {[%clk 0:00:01.9]} 46... Ka6 {[%clk 0:00:03.7]} 47.
Qc8+ {[%clk 0:00:02.5]} 47... Kb6 {[%clk 0:00:04.5]} 48. Rxe1 {[%clk 0:00:02.7]}
48... Nxe1 {[%clk 0:00:03.3]} 49. Qd8+ {[%clk 0:00:03.6]} 49... Ka6 {[%clk
0:00:02.6]} 50. Qc8+ {[%clk 0:00:03.9]} 50... Kb6 {[%clk 0:00:02.3]} 51. Nd7+
{[%clk 0:00:04.5]} 51... Ka7 {[%clk 0:00:01]} 52. Qb8+ {[%clk 0:00:04.7]} 1-0

[Event "*** Titled Tuesday Blitz"]
[Site "Chess.com"]
[Date "2020.05.26"]
[Round "2"]
[White "freshfoodcompany"]
[Black "hectorfiori"]
[Result "1-0"]
[WhiteElo "2220"]
[BlackElo "2414"]
[TimeControl "180+1"]
[EndTime "10:18:33 PDT"]
[Termination "freshfoodcompany won by resignation"]

1. d4 {[%clk 0:03:00.9]} 1... Nf6 {[%clk 0:02:59.3]} 2. c4 {[%clk 0:03:00.9]}
2... c5 {[%clk 0:02:59.2]} 3. d5 {[%clk 0:03:00.8]} 3... e6 {[%clk 0:02:59.4]}
4. Nc3 {[%clk 0:02:58.9]} 4... exd5 {[%clk 0:02:59.6]} 5. cxd5 {[%clk
0:02:59.1]} 5... d6 {[%clk 0:03:00]} 6. Bf4 {[%clk 0:02:55.8]} 6... a6 {[%clk
0:02:55.1]} 7. a4 {[%clk 0:02:54.5]} 7... g6 {[%clk 0:02:53.3]} 8. h3 {[%clk
0:02:51.8]} 8... Bg7 {[%clk 0:02:52.6]} 9. e3 {[%clk 0:02:51.8]} 9... O-O {[%clk
0:02:51.7]} 10. Nf3 {[%clk 0:02:46.5]} 10... Qc7 {[%clk 0:02:51]} 11. Bc4 {[%clk
0:02:44.9]} 11... Nbd7 {[%clk 0:02:50.8]} 12. O-O {[%clk 0:02:44]} 12... Rb8
{[%clk 0:02:50.1]} 13. a5 {[%clk 0:02:41.1]} 13... Re8 {[%clk 0:02:49.6]} 14.
Qc2 {[%clk 0:02:31.1]} 14... b5 {[%clk 0:02:43.2]} 15. axb6 {[%clk 0:02:29.7]}
15... Nxb6 {[%clk 0:02:42.2]} 16. Bxa6 {[%clk 0:02:27.2]} 16... Nbxd5 {[%clk
0:02:36.5]} 17. Nb5 {[%clk 0:02:16.4]} 17... Rxb5 {[%clk 0:02:07.9]} 18. Bxb5
{[%clk 0:02:12.7]} 18... Rd8 {[%clk 0:02:05.5]} 19. Bh2 {[%clk 0:02:03.2]} 19...
Nb4 {[%clk 0:02:04.9]} 20. Qe2 {[%clk 0:02:00]} 20... Qb6 {[%clk 0:01:59.7]} 21.
Rfc1 {[%clk 0:01:56.2]} 21... Bf5 {[%clk 0:01:53]} 22. Nh4 {[%clk 0:01:47.8]}
22... Be4 {[%clk 0:01:49]} 23. f3 {[%clk 0:01:41.6]} 23... Bb7 {[%clk
0:01:47.8]} 24. Bc4 {[%clk 0:01:35]} 24... Re8 {[%clk 0:01:33.7]} 25. Qf2 {[%clk
0:01:24.9]} 25... Nfd5 {[%clk 0:01:28.1]} 26. Re1 {[%clk 0:01:11.3]} 26... Nxe3
{[%clk 0:01:17]} 27. Kh1 {[%clk 0:00:45.6]} 27... Bd4 {[%clk 0:01:14.4]} 28. Bf4
{[%clk 0:00:37.5]} 28... d5 {[%clk 0:00:53.3]} 29. Bxe3 {[%clk 0:00:20]} 29...
dxc4 {[%clk 0:00:47]} 30. Bxd4 {[%clk 0:00:19.1]} 30... Rxe1+ {[%clk 0:00:47.3]}
31. Rxe1 {[%clk 0:00:18.1]} 31... cxd4 {[%clk 0:00:47.3]} 32. Re8+ {[%clk
0:00:17.4]} 32... Kg7 {[%clk 0:00:47.4]} 33. Qg3 {[%clk 0:00:17.4]} 33... Qf6
{[%clk 0:00:43.5]} 34. Qe5 {[%clk 0:00:14.5]} 34... Qxe5 {[%clk 0:00:40.2]} 35.
Rxe5 {[%clk 0:00:14.4]} 35... d3 {[%clk 0:00:40.3]} 36. Re1 {[%clk 0:00:12.9]}
36... Bc6 {[%clk 0:00:34.9]} 37. f4 {[%clk 0:00:12.4]} 37... Ba4 {[%clk
0:00:33]} 38. Nf3 {[%clk 0:00:12]} 38... Nd5 {[%clk 0:00:31.5]} 39. Nd2 {[%clk
0:00:10.1]} 39... Nb6 {[%clk 0:00:17.7]} 40. Re4 {[%clk 0:00:06.3]} 40... Bb5
{[%clk 0:00:17.6]} 41. Rd4 {[%clk 0:00:06.1]} 41... Kf6 {[%clk 0:00:10.4]} 42.
Rd6+ {[%clk 0:00:05.6]} 42... Ke7 {[%clk 0:00:09.7]} 43. Rxb6 {[%clk 0:00:06.1]}
43... Bd7 {[%clk 0:00:09.3]} 44. Rb7 {[%clk 0:00:06.3]} 44... Kd6 {[%clk
0:00:09]} 45. Nxc4+ {[%clk 0:00:06.9]} 45... Kc6 {[%clk 0:00:07.9]} 46. Rb8
{[%clk 0:00:07.4]} 46... Be6 {[%clk 0:00:07.9]} 47. Rh8 {[%clk 0:00:07.9]} 47...
Kd5 {[%clk 0:00:07.8]} 48. Ne3+ {[%clk 0:00:07.6]} 48... Kd4 {[%clk 0:00:08.3]}
49. Nd1 {[%clk 0:00:08.2]} 49... Ke4 {[%clk 0:00:08]} 50. Rd8 {[%clk 0:00:08.1]}
50... Bc4 {[%clk 0:00:06.9]} 51. Kg1 {[%clk 0:00:08]} 51... Kxf4 {[%clk
0:00:07.1]} 52. Kf2 {[%clk 0:00:08.5]} 52... Ke4 {[%clk 0:00:07.3]} 53. Nc3+
{[%clk 0:00:09]} 53... Kf5 {[%clk 0:00:06.5]} 54. Ke3 {[%clk 0:00:09.1]} 54...
h5 {[%clk 0:00:06.9]} 55. Rd7 {[%clk 0:00:08.8]} 55... Be6 {[%clk 0:00:06.4]}
56. Rd4 {[%clk 0:00:09.1]} 56... g5 {[%clk 0:00:04.7]} 57. Rxd3 {[%clk
0:00:09.6]} 1-0

[Event "*** Titled Tuesday Blitz"]
[Site "Chess.com"]
[Date "2020.05.26"]
[Round "2"]
[White "semchik73"]
[Black "etesungam"]
[Result "1-0"]
[WhiteElo "2202"]
[BlackElo "2403"]
[TimeControl "180+1"]
[EndTime "10:18:34 PDT"]
[Termination "semchik73 won on time"]

1. Nf3 {[%clk 0:03:00.4]} 1... Nf6 {[%clk 0:02:59.5]} 2. c4 {[%clk 0:03:00.5]}
2... g6 {[%clk 0:02:57.1]} 3. Nc3 {[%clk 0:03:00.9]} 3... d5 {[%clk 0:02:56.8]}
4. d4 {[%clk 0:03:00]} 4... Bg7 {[%clk 0:02:55.9]} 5. Qb3 {[%clk 0:02:58.6]}
5... c6 {[%clk 0:02:52.1]} 6. Bg5 {[%clk 0:02:54.6]} 6... O-O {[%clk 0:02:50.3]}
7. Bxf6 {[%clk 0:02:53.4]} 7... exf6 {[%clk 0:02:49.9]} 8. cxd5 {[%clk
0:02:53.8]} 8... cxd5 {[%clk 0:02:49.6]} 9. Qxd5 {[%clk 0:02:53.5]} 9... Nc6
{[%clk 0:02:43.2]} 10. Qxd8 {[%clk 0:02:50.7]} 10... Rxd8 {[%clk 0:02:42.5]} 11.
e3 {[%clk 0:02:51.2]} 11... f5 {[%clk 0:02:34.7]} 12. Bc4 {[%clk 0:02:44.7]}
12... Na5 {[%clk 0:02:16.4]} 13. Be2 {[%clk 0:02:40.4]} 13... f4 {[%clk
0:02:15]} 14. O-O {[%clk 0:02:37.3]} 14... fxe3 {[%clk 0:02:14.5]} 15. fxe3
{[%clk 0:02:37.3]} 15... Bh6 {[%clk 0:02:13.7]} 16. Kf2 {[%clk 0:02:30.1]} 16...
Re8 {[%clk 0:01:55.8]} 17. e4 {[%clk 0:02:29.3]} 17... Bd7 {[%clk 0:01:49.7]}
18. Nd5 {[%clk 0:02:28.5]} 18... Bg7 {[%clk 0:01:27.7]} 19. Nc7 {[%clk
0:02:26.6]} 19... f5 {[%clk 0:01:09.1]} 20. Nxa8 {[%clk 0:02:23.9]} 20... fxe4
{[%clk 0:01:04.3]} 21. Ne5 {[%clk 0:02:16.6]} 21... Bxe5 {[%clk 0:00:43.9]} 22.
dxe5 {[%clk 0:02:16]} 22... Rxa8 {[%clk 0:00:43.6]} 23. Ke3 {[%clk 0:02:15.9]}
23... Re8 {[%clk 0:00:39.2]} 24. Kxe4 {[%clk 0:02:15.1]} 24... Bc6+ {[%clk
0:00:35.6]} 25. Kf4 {[%clk 0:02:14.1]} 25... Bxg2 {[%clk 0:00:32.7]} 26. Rfe1
{[%clk 0:02:10.6]} 26... Kg7 {[%clk 0:00:27.7]} 27. Bb5 {[%clk 0:02:07.2]} 27...
Rf8+ {[%clk 0:00:27.4]} 28. Kg3 {[%clk 0:02:07.3]} 28... Bc6 {[%clk 0:00:23.3]}
29. Bxc6 {[%clk 0:02:06.1]} 29... Nxc6 {[%clk 0:00:23.9]} 30. e6 {[%clk
0:02:05.8]} 30... Re8 {[%clk 0:00:23.7]} 31. Rad1 {[%clk 0:02:04.4]} 31... Kf6
{[%clk 0:00:22.5]} 32. Rd7 {[%clk 0:02:03.9]} 32... Ne5 {[%clk 0:00:20.2]} 33.
Rxb7 {[%clk 0:01:55.4]} 33... Rxe6 {[%clk 0:00:17]} 34. Rxa7 {[%clk 0:01:53.2]}
34... Rb6 {[%clk 0:00:16.7]} 35. b3 {[%clk 0:01:51.2]} 35... Rc6 {[%clk
0:00:16.6]} 36. Re3 {[%clk 0:01:47.3]} 36... h5 {[%clk 0:00:15.7]} 37. h4 {[%clk
0:01:46.8]} 37... Ng4 {[%clk 0:00:14.8]} 38. Rf3+ {[%clk 0:01:46.8]} 38... Ke5
{[%clk 0:00:14.8]} 39. Ra5+ {[%clk 0:01:45.7]} 39... Ke6 {[%clk 0:00:14.3]} 40.
Rg5 {[%clk 0:01:43.7]} 40... Ke7 {[%clk 0:00:12.5]} 41. Rxg4 {[%clk 0:01:36.5]}
41... hxg4 {[%clk 0:00:12.2]} 42. Kxg4 {[%clk 0:01:36.9]} 42... Rc5 {[%clk
0:00:12.5]} 43. a4 {[%clk 0:01:35.6]} 43... Ra5 {[%clk 0:00:12.3]} 44. Rf4
{[%clk 0:01:33.5]} 44... Ke6 {[%clk 0:00:11.1]} 45. Rb4 {[%clk 0:01:33.7]} 45...
Rd5 {[%clk 0:00:10.8]} 46. Rb5 {[%clk 0:01:31.8]} 46... Rd4+ {[%clk 0:00:11.1]}
47. Kg5 {[%clk 0:01:31.1]} 47... Kd6 {[%clk 0:00:11.7]} 48. a5 {[%clk
0:01:28.8]} 48... Kc6 {[%clk 0:00:11.5]} 49. Rb6+ {[%clk 0:01:28.7]} 49... Kc7
{[%clk 0:00:11.3]} 50. Rxg6 {[%clk 0:01:27.3]} 50... Rb4 {[%clk 0:00:11.9]} 51.
Rb6 {[%clk 0:01:26.2]} 51... Rd4 {[%clk 0:00:09.9]} 52. h5 {[%clk 0:01:25.9]}
52... Rd5+ {[%clk 0:00:10.4]} 53. Kg6 {[%clk 0:01:26]} 53... Rxa5 {[%clk
0:00:11.3]} 54. Rf6 {[%clk 0:01:19.6]} 54... Ra1 {[%clk 0:00:07.7]} 55. h6
{[%clk 0:01:19.4]} 55... Rh1 {[%clk 0:00:07.4]} 56. h7 {[%clk 0:01:18.8]} 56...
Kd7 {[%clk 0:00:07.9]} 57. Rf8 {[%clk 0:01:16.9]} 57... Rg1+ {[%clk 0:00:07]}
58. Kh6 {[%clk 0:01:03.6]} 58... Rh1+ {[%clk 0:00:06.9]} 59. Kg7 {[%clk
0:01:03.6]} 59... Rg1+ {[%clk 0:00:07.6]} 60. Kh8 {[%clk 0:01:03.7]} 60... Ke7
{[%clk 0:00:08.1]} 61. Rb8 {[%clk 0:00:58]} 61... Rg2 {[%clk 0:00:06.4]} 62.
Rb7+ {[%clk 0:00:57.7]} 62... Kf8 {[%clk 0:00:06.3]} 63. Rb8+ {[%clk 0:00:57.5]}
63... Kf7 {[%clk 0:00:06.7]} 64. b4 {[%clk 0:00:57.8]} 64... Rb2 {[%clk
0:00:06.6]} 65. b5 {[%clk 0:00:57.2]} 65... Rb1 {[%clk 0:00:07.2]} 66. b6 {[%clk
0:00:56.9]} 66... Rb2 {[%clk 0:00:08]} 67. Rb7+ {[%clk 0:00:56.2]} 67... Kf8
{[%clk 0:00:07.9]} 68. Rb8+ {[%clk 0:00:55.8]} 68... Kf7 {[%clk 0:00:07.7]} 69.
b7 {[%clk 0:00:55.6]} 69... Rb1 {[%clk 0:00:07.2]} 70. Rg8 {[%clk 0:00:55.1]}
1-0

[Event "*** Titled Tuesday Blitz"]
[Site "Chess.com"]
[Date "2020.05.26"]
[Round "2"]
[White "Savagelittlemole"]
[Black "gena217"]
[Result "0-1"]
[WhiteElo "2539"]
[BlackElo "2841"]
[TimeControl "180+1"]
[EndTime "10:18:37 PDT"]
[Termination "gena217 won by checkmate"]

1. e4 {[%clk 0:03:00.9]} 1... c6 {[%clk 0:02:59.6]} 2. d4 {[%clk 0:03:00.5]}
2... d5 {[%clk 0:03:00.5]} 3. e5 {[%clk 0:03:00.9]} 3... Bf5 {[%clk 0:02:58.3]}
4. h4 {[%clk 0:02:57.3]} 4... h6 {[%clk 0:02:57.4]} 5. c4 {[%clk 0:02:56.6]}
5... e6 {[%clk 0:02:57.2]} 6. Nc3 {[%clk 0:02:57]} 6... Ne7 {[%clk 0:02:56.8]}
7. Nge2 {[%clk 0:02:57]} 7... Nd7 {[%clk 0:02:53.9]} 8. Ng3 {[%clk 0:02:57.4]}
8... Bh7 {[%clk 0:02:53]} 9. cxd5 {[%clk 0:02:57.4]} 9... Nxd5 {[%clk
0:02:52.2]} 10. Bd3 {[%clk 0:02:56.8]} 10... Bxd3 {[%clk 0:02:41.6]} 11. Qxd3
{[%clk 0:02:57.7]} 11... Nxc3 {[%clk 0:02:41.2]} 12. bxc3 {[%clk 0:02:57.3]}
12... Nxe5 {[%clk 0:02:40.2]} 13. Qe2 {[%clk 0:02:56.7]} 13... Nd7 {[%clk
0:02:37.5]} 14. O-O {[%clk 0:02:30.7]} 14... Qxh4 {[%clk 0:02:33.7]} 15. Rb1
{[%clk 0:02:31]} 15... b5 {[%clk 0:02:27.4]} 16. d5 {[%clk 0:02:27.4]} 16...
cxd5 {[%clk 0:02:26.9]} 17. Qxb5 {[%clk 0:02:26.7]} 17... Qd8 {[%clk 0:02:22.9]}
18. Qa4 {[%clk 0:02:19.8]} 18... Be7 {[%clk 0:02:02.1]} 19. Rb7 {[%clk
0:02:19.6]} 19... Qc8 {[%clk 0:02:02.7]} 20. Rb1 {[%clk 0:01:53.3]} 20... O-O
{[%clk 0:02:00.3]} 21. Be3 {[%clk 0:01:53.7]} 21... Bc5 {[%clk 0:01:57.5]} 22.
Bxc5 {[%clk 0:01:40.5]} 22... Nxc5 {[%clk 0:01:58.4]} 23. Qg4 {[%clk 0:01:40.7]}
23... Qd8 {[%clk 0:01:56.4]} 24. f4 {[%clk 0:01:26.3]} 24... Ne4 {[%clk
0:01:42.1]} 25. Nxe4 {[%clk 0:01:23.6]} 25... dxe4 {[%clk 0:01:37.9]} 26. f5
{[%clk 0:01:23.9]} 26... exf5 {[%clk 0:01:32.6]} 27. Rxf5 {[%clk 0:01:24.8]}
27... Rc8 {[%clk 0:01:29.8]} 28. Qxe4 {[%clk 0:01:19.5]} 28... Rxc3 {[%clk
0:01:27.8]} 29. Rbf1 {[%clk 0:01:19.7]} 29... Qb6+ {[%clk 0:01:20.2]} 30. Kh1
{[%clk 0:01:16.6]} 30... Qc6 {[%clk 0:00:55.8]} 31. Qg4 {[%clk 0:00:54]} 31...
Rc5 {[%clk 0:00:52.5]} 32. Rf6 {[%clk 0:00:37.2]} 32... Qb5 {[%clk 0:00:52.4]}
33. R6f5 {[%clk 0:00:27.4]} 33... Rxf5 {[%clk 0:00:46.4]} 34. Qxf5 {[%clk
0:00:22.5]} 34... Qxf5 {[%clk 0:00:45.5]} 35. Rxf5 {[%clk 0:00:23.4]} 35... Rb8
{[%clk 0:00:40.8]} 36. Rc5 {[%clk 0:00:23.3]} 36... Rb7 {[%clk 0:00:32.5]} 37.
Kh2 {[%clk 0:00:22.7]} 37... g5 {[%clk 0:00:32.5]} 38. Kg3 {[%clk 0:00:22]}
38... Kg7 {[%clk 0:00:33.1]} 39. Kg4 {[%clk 0:00:22.1]} 39... Kg6 {[%clk
0:00:33]} 40. Rc6+ {[%clk 0:00:22.5]} 40... f6 {[%clk 0:00:33.5]} 41. g3 {[%clk
0:00:23]} 41... h5+ {[%clk 0:00:31.6]} 42. Kh3 {[%clk 0:00:23.2]} 42... Rb6
{[%clk 0:00:25.7]} 43. Rc7 {[%clk 0:00:21]} 43... Ra6 {[%clk 0:00:25.9]} 44. Rc2
{[%clk 0:00:21.3]} 44... Ra3 {[%clk 0:00:26.2]} 45. Kh2 {[%clk 0:00:20.9]} 45...
g4 {[%clk 0:00:21.8]} 46. Rb2 {[%clk 0:00:20]} 46... Kg5 {[%clk 0:00:20.8]} 47.
Kg2 {[%clk 0:00:20.2]} 47... f5 {[%clk 0:00:21.3]} 48. Rc2 {[%clk 0:00:20.4]}
48... h4 {[%clk 0:00:21.8]} 49. gxh4+ {[%clk 0:00:20.7]} 49... Kxh4 {[%clk
0:00:22.5]} 50. Kf2 {[%clk 0:00:19.8]} 50... f4 {[%clk 0:00:22.2]} 51. Kg2
{[%clk 0:00:19.5]} 51... f3+ {[%clk 0:00:15.6]} 52. Kg1 {[%clk 0:00:17.9]} 52...
g3 {[%clk 0:00:15]} 53. Rc4+ {[%clk 0:00:18.1]} 53... Kh3 {[%clk 0:00:15.3]} 54.
Rc8 {[%clk 0:00:15.4]} 54... Rxa2 {[%clk 0:00:12.5]} 55. Rh8+ {[%clk 0:00:15.1]}
55... Kg4 {[%clk 0:00:13.1]} 56. Rg8+ {[%clk 0:00:15.9]} 56... Kf4 {[%clk
0:00:13.6]} 57. Rf8+ {[%clk 0:00:15.4]} 57... Ke4 {[%clk 0:00:13.8]} 58. Re8+
{[%clk 0:00:15.7]} 58... Kd5 {[%clk 0:00:14.4]} 59. Rd8+ {[%clk 0:00:15.8]}
59... Ke6 {[%clk 0:00:14]} 60. Re8+ {[%clk 0:00:15.6]} 60... Kd7 {[%clk
0:00:13.8]} 61. Rf8 {[%clk 0:00:11.6]} 61... Ra1# {[%clk 0:00:13.4]} 0-1

[Event "*** Titled Tuesday Blitz"]
[Site "Chess.com"]
[Date "2020.05.26"]
[Round "2"]
[White "volcanoexplorer"]
[Black "Maghalashvili"]
[Result "1-0"]
[WhiteElo "2533"]
[BlackElo "2789"]
[TimeControl "180+1"]
[EndTime "10:18:37 PDT"]
[Termination "volcanoexplorer won on time"]

1. e4 {[%clk 0:03:00.9]} 1... c5 {[%clk 0:02:59.5]} 2. Nf3 {[%clk 0:03:01]} 2...
d6 {[%clk 0:03:00]} 3. d4 {[%clk 0:03:01.4]} 3... cxd4 {[%clk 0:03:00.9]} 4.
Nxd4 {[%clk 0:03:02.2]} 4... Nf6 {[%clk 0:03:01.5]} 5. Nc3 {[%clk 0:03:02.6]}
5... a6 {[%clk 0:03:02.1]} 6. h3 {[%clk 0:03:03.2]} 6... e5 {[%clk 0:02:59.3]}
7. Nde2 {[%clk 0:03:03.1]} 7... Be6 {[%clk 0:02:57.8]} 8. g4 {[%clk 0:03:03.3]}
8... Be7 {[%clk 0:02:55.1]} 9. Bg2 {[%clk 0:03:03.1]} 9... h5 {[%clk 0:02:53.7]}
10. g5 {[%clk 0:03:02.7]} 10... Nfd7 {[%clk 0:02:53.9]} 11. h4 {[%clk
0:03:01.1]} 11... Nc6 {[%clk 0:02:50.8]} 12. Be3 {[%clk 0:03:00.6]} 12... b5
{[%clk 0:02:50.3]} 13. a4 {[%clk 0:02:55.7]} 13... b4 {[%clk 0:02:46.1]} 14. Nd5
{[%clk 0:02:56.1]} 14... a5 {[%clk 0:02:36.8]} 15. Qd2 {[%clk 0:02:43.9]} 15...
Rc8 {[%clk 0:02:23]} 16. b3 {[%clk 0:02:20.6]} 16... O-O {[%clk 0:02:12.7]} 17.
O-O {[%clk 0:02:20.1]} 17... g6 {[%clk 0:02:01]} 18. Rad1 {[%clk 0:02:10]} 18...
Bxd5 {[%clk 0:01:55.8]} 19. exd5 {[%clk 0:01:45]} 19... Ncb8 {[%clk 0:01:49.4]}
20. Ng3 {[%clk 0:01:25.2]} 20... Qc7 {[%clk 0:01:45.6]} 21. Be4 {[%clk
0:01:10.3]} 21... Nc5 {[%clk 0:01:43.1]} 22. Bxc5 {[%clk 0:01:05.2]} 22... Qxc5
{[%clk 0:01:43.1]} 23. Qe2 {[%clk 0:00:49.7]} 23... Kg7 {[%clk 0:01:41.6]} 24.
Kg2 {[%clk 0:00:47.4]} 24... Nd7 {[%clk 0:01:34.5]} 25. Nxh5+ {[%clk 0:00:31]}
25... gxh5 {[%clk 0:01:32.1]} 26. Qxh5 {[%clk 0:00:31.4]} 26... Rh8 {[%clk
0:01:24.1]} 27. Qg4 {[%clk 0:00:31.4]} 27... Nf8 {[%clk 0:01:17.9]} 28. h5
{[%clk 0:00:29.9]} 28... Nh7 {[%clk 0:01:02.6]} 29. h6+ {[%clk 0:00:10.7]} 29...
Kf8 {[%clk 0:01:00.7]} 30. g6 {[%clk 0:00:09.9]} 30... fxg6 {[%clk 0:00:57.8]}
31. Bxg6 {[%clk 0:00:06.1]} 31... Rg8 {[%clk 0:00:45.7]} 32. Qe6 {[%clk
0:00:05.5]} 32... Rxg6+ {[%clk 0:00:29.5]} 33. Qxg6 {[%clk 0:00:06.4]} 33... Nf6
{[%clk 0:00:29.5]} 34. Qg7+ {[%clk 0:00:06.3]} 34... Ke8 {[%clk 0:00:29.1]} 35.
h7 {[%clk 0:00:06.1]} 35... Nxh7 {[%clk 0:00:28.4]} 36. Qxh7 {[%clk 0:00:06]}
36... Qxc2 {[%clk 0:00:28.4]} 37. Qxc2 {[%clk 0:00:05.6]} 37... Rxc2 {[%clk
0:00:27.8]} 38. Rd3 {[%clk 0:00:06.3]} 38... Kd7 {[%clk 0:00:25.2]} 39. Kf3
{[%clk 0:00:06.7]} 39... Bg5 {[%clk 0:00:19.2]} 40. Rg1 {[%clk 0:00:05.9]} 40...
Bf4 {[%clk 0:00:19.4]} 41. Rg7+ {[%clk 0:00:05.6]} 41... Kc8 {[%clk 0:00:19.6]}
42. Ra7 {[%clk 0:00:05.5]} 42... Rc3 {[%clk 0:00:15.8]} 43. Ke2 {[%clk
0:00:05.1]} 43... Rc2+ {[%clk 0:00:15.6]} 44. Kd1 {[%clk 0:00:04.7]} 44... Rc5
{[%clk 0:00:16.5]} 45. Rg7 {[%clk 0:00:02.9]} 45... Kb8 {[%clk 0:00:15.7]} 46.
Rh3 {[%clk 0:00:03.2]} 46... Rxd5+ {[%clk 0:00:14.7]} 47. Ke2 {[%clk 0:00:03.4]}
47... Rc5 {[%clk 0:00:13.9]} 48. Rh8+ {[%clk 0:00:03.3]} 48... Rc8 {[%clk
0:00:14.8]} 49. Rxc8+ {[%clk 0:00:03.7]} 49... Kxc8 {[%clk 0:00:15.4]} 50. Ra7
{[%clk 0:00:04.5]} 50... Kb8 {[%clk 0:00:15.1]} 51. Rxa5 {[%clk 0:00:05]} 51...
Kc7 {[%clk 0:00:15.5]} 52. Kd3 {[%clk 0:00:05.3]} 52... d5 {[%clk 0:00:15.7]}
53. Rxd5 {[%clk 0:00:05.1]} 53... Kc6 {[%clk 0:00:16.2]} 54. Kc4 {[%clk
0:00:05.2]} 54... e4 {[%clk 0:00:13.8]} 55. Rd4 {[%clk 0:00:05.1]} 55... Bd6
{[%clk 0:00:13.6]} 56. Rxe4 {[%clk 0:00:05.3]} 1-0